Cogmind - Beta 10.1 @@@ ROGUE MODE // 2020.10.12 @ 17:31:04 Player: ConfusingDalek Result: Destroyed by G-34 Mercenary with Small Laser Performance ------------- Evolutions (1) 500 Regions Visited (2) 400 Robots Destroyed (27) 135 Value Destroyed (635) 635 Prototype IDs (5) 100 Alien Tech Used (0) 0 Bonus (0) 0 TOTAL SCORE: 1770 Bonus ------- None Cogmind --------- Core Integrity 0/400 Matter 300/300 Energy 280/280 System Corruption 0% Temperature Cool (6) Movement Walking (150) Ox1 Location -9/Materials Parts ------- > --- POWER (1) -------- Heavy Ion Engine > --- PROPULSION (3) --- Improved Aluminum Leg Compact Wheel > --- UTILITY (3) ------ Large Storage Unit > --- WEAPON (2) ------- (None) > --- INVENTORY (10) --- Ion Engine Ion Engine Heavy Ion Engine Medium Storage Unit Medium Storage Unit Large Storage Unit Visual Processing Unit Sensor Array Hacking Suite Peak State ------------ > --- POWER ------------ Heavy Ion Engine > --- PROPULSION ------- Light Treads Aluminum Leg > --- UTILITY ---------- Cooling System Large Storage Unit Large Storage Unit > --- WEAPON ----------- Medium Laser Datajack > --- INVENTORY -------- Ion Engine Ion Engine Heavy Ion Engine Wheel Compact Wheel Medium Storage Unit Medium Storage Unit Visual Processing Unit Sensor Array Hacking Suite [Rating: 12] Favorites ----------- Power Heavy Ion Engine Engine Heavy Ion Engine Propulsion Aluminum Leg Treads Light Treads Leg Aluminum Leg Wheel Compact Wheel Utility Large Storage Unit Device Cooling System Storage Large Storage Unit Weapon Medium Laser Energy Gun Medium Laser Ballistic Gun Light Assault Rifle Special Melee Weapon Datajack Build | -11 -10 -9 ------- Run | Scr Mat Mat Slots Evolved 2 | . . 2 Power . | . . . Propulsion 1 | . . 1 Utility 1 | . . 1 Weapon . | . . . Parts Attached 28 | 7 8 13 Power 3 | 1 1 1 Engine 3 | 1 1 1 Core . | . . . Reactor . | . . . Propulsion 9 | 2 2 5 Treads 3 | . 2 1 Leg 4 | 2 . 2 Wheel 2 | . . 2 Hover . | . . . Flight . | . . . Utility 6 | 2 2 2 Device 1 | . . 1 Storage 5 | 2 2 1 Processor . | . . . Hackware . | . . . Protection . | . . . Artifact . | . . . Weapon 10 | 2 3 5 Energy Gun 5 | 2 1 2 Energy Cannon . | . . . Ballistic Gun 4 | . 2 2 Ballistic Cannon . | . . . Launcher . | . . . Special Weapon . | . . . Impact Weapon . | . . . Slashing Weapon . | . . . Piercing Weapon . | . . . Special Melee Weapon 1 | . . 1 Unidentified Prototypes . | . . . Parts Lost 19 | . 7 12 Power 1 | . 1 . Propulsion 7 | . 2 5 Utility 1 | . . 1 Weapon 10 | . 4 6 Highest Loss Streak 7 | . 7 5 Average Slot Usage (%) 76 | . 86 68 Engine 10 | . 10 11 Treads 7 | . 6 7 Leg 11 | . 18 6 Device 4 | . . 8 Storage 25 | . 28 23 Energy Gun 11 | . 18 6 Ballistic Gun 3 | . 3 3 Naked Turns . | . . . Heaviest Build 52 | 16 40 52 Greatest Support 40 | 20 40 40 Greatest Overweight (x) 13 | 1 1 13 Average Overweight (x) 1 | . . 3 Largest Inventory Capacity 20 | 8 16 20 Average Capacity 15 | 6 15 16 Most Carried 10 | 6 10 10 Average Carried 7 | 4 7 8 Final Capacity 16 | 8 16 10 Final Carried 9 | 6 8 9 Class Distribution -------------------- 88% | Mutant 11% | Hauler-Mutant Dominant Class ---------------- Mutant | -10/Materials Mutant | -9/Materials Resources | -11 -10 -9 ----------- Run | Scr Mat Mat Matter Collected 475 | 270 102 103 Remotely . | . . . Salvage Created 911 | 100 385 426 Parts 48 | 1 22 25 Haulers Intercepted . | . . . Recyclers Shooed 1 | . . 1 Parts Field Recycled . | . . . Retrieved Matter . | . . . Parts Self-Destructed . | . . . Prevented . | . . . Kills | -11 -10 -9 ------- Run | Scr Mat Mat Combat Hostiles Destroyed 22 | . 11 11 Melee 5 | . 2 3 Guns 16 | . 9 7 Classes Destroyed 7 | 1 3 3 Recycler 2 | 1 1 . Operator 1 | . . 1 Watcher 2 | . 1 1 Swarmer 10 | . 6 4 Grunt 10 | . 5 5 Duelist 1 | . . 1 Sentry 1 | . . 1 Best Kill Streak 5 | 1 5 2 Combat Bots Only 5 | . 5 2 Max Kills in Single Turn 1 | 1 1 1 Gunslinging . | . . . Exploded . | . . . Melee 1 | . 1 1 Uniques/NPCs Destroyed . | . . . Combat | -11 -10 -9 -------- Run | Scr Mat Mat Damage Taken 2571 | . 1100 1471 Core 635 | . 230 405 Absorbed by Shields . | . . . Core Remaining (%) 54 | 100 8 . Volleys Fired 128 | 2 54 72 Largest 2 | 2 2 2 Hottest 100 | 90 90 100 Shots Fired 160 | 4 72 84 Gun 160 | 4 72 84 Cannon . | . . . Launcher . | . . . Special . | . . . Kinetic 57 | . 33 24 Thermal 103 | 4 39 60 Explosive . | . . . Electromagnetic . | . . . Robot Hit Streak 15 | 3 6 15 Robot Miss Streak 5 | . 5 5 Penetration Max . | . . . Secondary Targets 1 | . 1 . Max Gunslinging Chain 1 | . 1 . Shots Hit Robots 111 | 3 44 64 Core Hits 56 | 2 25 29 Critical Hits . | . . . Critical Kills . | . . . Critical Parts Destroyed . | . . . Melee Attacks . | . . . Impact . | . . . Slashing . | . . . Piercing . | . . . Sneak Attacks . | . . . Combat Hostiles . | . . . Follow-up Attacks . | . . . Damage Inflicted 1373 | 34 529 810 Guns 1259 | 34 508 717 Cannons . | . . . Explosions 18 | . . 18 Melee . | . . . Ramming 96 | . 21 75 Kinetic 396 | . 258 138 Thermal 863 | 34 250 579 Explosive . | . . . Electromagnetic 18 | . . 18 Impact . | . . . Slashing . | . . . Piercing . | . . . Highest Corruption . | . . . Average Corruption . | . . . Corruption Purged . | . . . Overload Shots . | . . . Overflow Damage 8 | . . 8 Projectiles . | . . . Explosions 8 | . . 8 Melee . | . . . Knockbacks . | . . . Impact . | . . . Kinetic . | . . . Secondary . | . . . Self-Inflicted Damage 60 | . . 60 Shots 1 | . . 1 Rammed 24 | . 9 15 Targets Rammed 27 | . 11 16 Kicked 1 | . . 1 Crushed 2 | . 2 . Highest Temperature 341 | 60 318 341 Average Temperature 103 | 30 93 133 Received Heat Transfer 660 | . 309 351 Effects 3 | . 2 1 Energy Bleed 1 | . . 1 Interference 2 | . 2 . Siege Activations . | . . . Robots Corrupted . | . . . Combat Hostiles . | . . . Parts Fried . | . . . Impact Corruptions . | . . . Robots Melted 1 | . . 1 Combat Hostiles 1 | . . 1 Parts Melted 7 | . . 7 Heat Transferred 2388 | 87 622 1679 Parts Sabotaged . | . . . Parts Stolen . | . . . Parts Stripped . | . . . Power Chain Reactions . | . . . Missiles Intercepted . | . . . Alert | -11 -10 -9 ------- Run | Scr Mat Mat Peak Influence 351 | 5 261 351 Initial 109 | . 3 109 Average 174 | 3 134 228 Maximum Alert Level 1 | . 1 1 Low Security (%) 60 | 100 69 47 Level 1 39 | . 30 52 Level 2 . | . . . Level 3 . | . . . Level 4 . | . . . Level 5 . | . . . High Security . | . . . Max Security . | . . . Squads Dispatched 5 | . 2 3 Investigation 2 | . 1 1 Extermination . | . . . Reinforcement 3 | . 1 2 Assault . | . . . Garrison . | . . . Intercept . | . . . Construction Impeded . | . . . Haulers Reinforced . | . . . Stealth | -11 -10 -9 --------- Run | Scr Mat Mat Distress Signals . | . . . Communications Jammed . | . . . Distress Signals . | . . . Times Spotted 47 | . 20 27 Peak Tracking Total 9 | . 9 4 Tactical Retreats 3 | . 1 2 Traps | -11 -10 -9 ------- Run | Scr Mat Mat Traps Triggered . | . . . Indirectly . | . . . Trap Hack Attempts . | . . . Triggered . | . . . Disarmed . | . . . Reprogrammed . | . . . Reused . | . . . Traps Extracted . | . . . Installed . | . . . Triggered . | . . . Machines | -11 -10 -9 ---------- Run | Scr Mat Mat Machines Disabled 3 | . . 3 Max in Single Turn 3 | . . 3 Machines Sabotaged . | . . . Garrisons Compromised . | . . . Overloaded Fab Kills . | . . . Fab Network Shutdowns . | . . . Hacking | -11 -10 -9 --------- Run | Scr Mat Mat Machines Accessed 5 | . 3 2 Terminals 4 | . 3 1 Fabricators . | . . . Repair Stations . | . . . Recycling Units . | . . . Scanalyzers 1 | . . 1 Garrison Access . | . . . Total Hacks 27 | . 13 14 Successful 19 | . 7 12 Failed 8 | . 6 2 Catastrophic . | . . . Database Lockouts . | . . . Manual 10 | . 10 . Terminals 16 | . 13 3 Fabricators . | . . . Repair Stations . | . . . Recycling Units . | . . . Scanalyzers 11 | . . 11 Garrison Access . | . . . Terminal Hacks 5 | . 3 2 Prototype ID Bank 3 | . 2 1 Alert Level 1 | . . 1 Locate Traps 1 | . 1 . Fabricator Hacks . | . . . Repair Station Hacks . | . . . Recycling Unit Hacks . | . . . Scanalyzer 10 | . . 10 Insert Component 5 | . . 5 Analyze 5 | . . 5 Garrison Access Hacks . | . . . Unauthorized Hacks 4 | . 4 . Terminals 4 | . 4 . Track 1 | . 1 . Botnet 2 | . 2 . Operators 1 | . 1 . Fabricators . | . . . Repair Stations . | . . . Recycling Units . | . . . Scanalyzers . | . . . Garrison Access . | . . . Data Cores Recovered . | . . . Used . | . . . Hacking Detections 5 | . 3 2 Full Trace Events 2 | . 1 1 Feedback Events . | . . . Feedback Blocked . | . . . Robot Schematics Acquired . | . . . Robots Built . | . . . Matter . | . . . Time . | . . . Total Robot Build Rating . | . . . Part Schematics Acquired 5 | . . 5 Parts Built . | . . . Matter . | . . . Time . | . . . Total Part Build Rating . | . . . Parts Repaired . | . . . Time . | . . . Parts Recycled . | . . . Recycled Matter . | . . . Retrieved Matter . | . . . Retrieved Components . | . . . Parts Scanalyzed 5 | . . 5 Part Schematics Acquired 5 | . . 5 Parts Damaged . | . . . Bothacking | -11 -10 -9 ------------ Run | Scr Mat Mat Used RIF Installer . | . . . Robots Hacked . | . . . Non-combat . | . . . Combat . | . . . Robot Hacks Applied . | . . . Relay Couplers Released . | . . . Robots Rewired . | . . . Allies Hacked . | . . . Hacks Repelled . | . . . Allies | -11 -10 -9 -------- Run | Scr Mat Mat Total Allies . | . . . Largest Group . | . . . Highest-Rated Group . | . . . Highest-Rated Ally . | . . . Total Orders . | . . . Ally Attacks . | . . . Total Damage . | . . . Kills . | . . . Allies Corrupted . | . . . Allies Melted . | . . . Intel | -11 -10 -9 ------- Run | Scr Mat Mat Robot Analysis Total . | . . . Derelict Logs Recovered . | . . . Drone Launches . | . . . Drone Recoveries . | . . . Exploration | -11 -10 -9 ------------- Run | Scr Mat Mat Turns Passed 1054 | 86 394 574 Spaces Moved 364 | 54 157 153 Core 15 | 7 . 8 Treads 125 | . 36 89 Legs 223 | 47 121 55 Wheels 1 | . . 1 Hover . | . . . Flight . | . . . Fastest Speed 50 | 50 120 100 Average Speed 179 | 116 148 232 Slowest Speed 700 | 120 160 700 Overloaded Moves . | . . . Propulsion Burnouts . | . . . Robots Hopped . | . . . Cave-ins Triggered . | . . . Exploration Rate (%) 14 | 5 25 13 Regions Visited 2 Branch Regions . Pre-discovered Areas . | . . . Known Exits Taken . | . . . Unknown Exits Taken 2 | 1 1 . Scrap Searched . | . . . Spaces Dug . | . . . Terrain Destroyed . | . . . Melee . | . . . Projectile . | . . . AOE . | . . . Terrain Rammed . | . . . Walls Destroyed . | . . . Machines Disabled . | . . . Actions | -11 -10 -9 --------- Run | Scr Mat Mat Total 583 | 70 240 273 Wait 18 | . 4 14 Move 362 | 53 156 153 Hop . | . . . Pick Up 16 | 8 5 3 Fast Attach 15 | 5 3 7 Attach 10 | 2 3 5 Detach 2 | . . 2 Swap 3 | . 2 1 Drop 2 | . 2 . Fire 128 | 2 54 72 Melee . | . . . Ram 10 | . . 10 Kick 6 | . . 6 Crush 11 | . 11 . Escape Stasis . | . . . Rewire . | . . . Trap . | . . . Miscellaneous . | . . . Route ------- -11/Scrapyard -10/Materials (discovered 2 exits: *Mat / [*Min]) -9/Materials History --------- Turn | Location | Event 12 | -11/Scrapyard | Discovered new exit (range 15) 87 | -11/Scrapyard | Entered Materials 177 | -10/Materials | Discovered new exit (range 16) 287 | -10/Materials | Discovered new exit (range 12) 300 | -10/Materials | Build established: Mutant 379 | -10/Materials | Core integrity fell below 50% 397 | -10/Materials | Core integrity fell below 20% 432 | -10/Materials | Lost 7 parts (1p2n4w) 481 | -10/Materials | Entered another Materials area 481 | -9/Materials | Evolved 2 slots: Propulsion x1, Utility x1 810 | -9/Materials | Lost 3 parts (1n2w) 820 | -9/Materials | Core integrity fell below 50% 1018 | -9/Materials | Core integrity fell below 20% 1055 | -9/Materials | Destroyed by G-34 Mercenary with Small Laser Last Messages --------------- 01017_ Slammed into L-31 Rogue. 01017_ Destabilizing: Core damaged (-8). 01018_ Slammed into S-10 Pest. 01018_ S-10 Pest destroyed. 01019_ Acquired 12 matter. 01020_ Acquired Lgt. Assault Rifle. 01026_ Lgt. Assault Rifle destroyed. 01026_ Cooling System destroyed. 01026_ Slammed into L-31 Rogue. 01030_ Com. Wheel permanently disabled. 01030_ Destabilizing: Short circuit. 01032_ Slammed into L-31 Rogue. 01033_ L-31 Rogue destroyed. 01033_ Wheel permanently disabled. 01033_ Destabilizing: Short circuit. 01040_ Broken Wheel destroyed. 01048_ Acquired Imp. Aluminum Leg. 01050_ Slammed into G-34 Mercenary. 01051_ Acquired 6 matter. 01051_ Slammed into G-34 Mercenary. Map ----- +----------------------------------------------------+ | ???????????????# ! #??# # | | ???????????????# %*#??# # | | ???????????????# #??# # | | ??????????????## ##?# # | | ??????????????# #?# # | | ??????????????# ########## | | ??????????????# *%= #??? | | ??????????????# ## %#??? | | ??????????????# % ## % #??? | | ??????????????###+####+##%#??? | | ??????????????# " #k#??? | | ??????????##### # #??? | | ??????????# +" #%#??? | | ??????????#####%""" # #??? | | ??????????????#"""" "" # #??? | | ??????????????# """ S"" # #??? | | ??????????????# "" # #??? | | ??????????????# # #??? | | ??????????????########### #??? | | ????????????????????????# #??? | | ????????????????????????# #??? | | ????????????????????????#%#??? | | ????????????????????????#%#??? | | ???????????????####+#####g#??? | | ???????????????# =%%g#??? | | ???????????????# ##@###? | | ???????????????# ?#%%%#? | | ???????????????# ??#%"!#? | | ???????????????# ??#%Tg#? | | ???????????????# ???#g"%#? | | ???????????????# ???#*! #? | | ???????????????# ????# #? | | ???????????????# ????#! #? | | ??????????????? ?????#####? | | ??????????????#####??????????? | | ?????????????????????????????? | | ?????????????????????????????? | | ?????????????????????????????? | | ?????????????????????????????? | | ?????????????????????????????? | | ?????????????????????????????? | | ?????????????????????????????? | | ?????????????????????????????? | | ?????????????????????????????? | | ?????????????????????????????? | | ?????????????????????????????? | | ?????????????????????????????? | | ?????????????????????????????? | | ?????????????????????????????? | | ?????????????????????????????? | +----------------------------------------------------+ Best States ------------- Heat Dissipation 50 Energy Generation 14 Energy Capacity 280 Matter Stores 300 Matter Capacity 300 Sight Range 16 Terrain Scan Density 10 Evasion (%) 40 Recoil Reduction 2 Item Schematics ----------------- Hacking Suite | -9/Materials | Scanalyzed Med. Storage Unit | -9/Materials | Scanalyzed Visual Processing Unit | -9/Materials | Scanalyzed Hvy. Ion Engine | -9/Materials | Scanalyzed Sensor Array | -9/Materials | Scanalyzed Robot Schematics ------------------ None Fabricated ------------ Nothing Alien Tech Used ----------------- None Achievements -------------- None Challenges ------------ None Game ------ Seed MeleeGhostMachine Manual? 0 Play Time 00:12:26 Cumulative 91.2 hours Start 2020.10.12 @ 17:18:49 End 2020.10.12 @ 17:31:04 Sessions 1 Manual Loads 0 Difficulty Rogue Special Mode None Game No. 78 Rogue 78 Adventurer 0 Explorer 0 Win Type - Total 2 Types 1/0/0/1/0/0/0/0/0 Lore% 50 Gallery% 48 Achievement% 41 Wizard Run 0 Options --------- ASCII 0 Keyboard 0 Movement Arrows Keybinds 0 Fullscreen 0 Font 12/Smallcaps Map View 72x54 Tactical HUD 1 Map Filters NONE Filters NONE Steam 1 RUN: 767cf266-d399-4f09-81df-015517956c5c